Cogmind - Beta 12 @@@ ROGUE MODE // 2023.06.04 @ 15:01:10 Player: Mr Goldstein Result: Self-destructed Performance ------------- Evolutions (3) 1500 Regions Visited (6) 1200 Robots Destroyed (0) 0 Value Destroyed (0) 0 Prototype IDs (1) 20 Alien Tech Used (0) 0 Bonus (894) 894 TOTAL SCORE: 3614 Bonus ------- Pacifist 834 Follower Combat Kills 60 Cogmind --------- Core Integrity 465/700 Matter 241/300 Energy 99/100 System Corruption 0% Temperature Cool (0) Movement Core (50) Location -7/Factory Parts ------- > --- POWER (1) -------- (None) > --- PROPULSION (4) --- (None) > --- UTILITY (6) ------ Improved Signal Interpreter > --- WEAPON (2) ------- (None) > --- INVENTORY (5) ---- Rocket Launcher Datajack Shock Trap Shock Trap Shock Trap Peak State ------------ > --- POWER ------------ (None) > --- PROPULSION ------- Flight Unit > --- UTILITY ---------- Improved Signal Interpreter Light Armor Plating Hacking Suite Hacking Suite Hacking Suite > --- WEAPON ----------- (None) > --- INVENTORY -------- Rocket Launcher Datajack Shock Trap Shock Trap Shock Trap [Rating: 14] Favorites ----------- Power None Propulsion Flight Unit Flight Unit Flight Unit Utility Hacking Suite Processor Improved Signal Interpreter Hackware Hacking Suite Protection Light Armor Plating Weapon Rocket Launcher Launcher Rocket Launcher Build | -11 -10 -10 -9 -9 -8 -7 ------- Run | Jun Mat Min Mat Min Mat Fac Slots Evolved 6 | . . . 2 . 2 2 Power . | . . . . . . . Propulsion 2 | . . . 1 . 1 . Utility 4 | . . . 1 . 1 2 Weapon . | . . . . . . . Parts Attached 17 | . . 1 5 5 3 3 Power . | . . . . . . . Engine . | . . . . . . . Core . | . . . . . . . Reactor . | . . . . . . . Propulsion 7 | . . . 5 1 . 1 Treads . | . . . . . . . Leg . | . . . . . . . Wheel . | . . . . . . . Hover . | . . . . . . . Flight 7 | . . . 5 1 . 1 Utility 9 | . . 1 . 3 3 2 Device . | . . . . . . . Storage . | . . . . . . . Processor 1 | . . . . . . 1 Hackware 3 | . . . . . 3 . Protection 5 | . . 1 . 3 . 1 Artifact . | . . . . . . . Weapon 1 | . . . . 1 . . Energy Gun . | . . . . . . . Energy Cannon . | . . . . . . . Ballistic Gun . | . . . . . . . Ballistic Cannon . | . . . . . . . Launcher 1 | . . . . 1 . . Special Weapon . | . . . . . . . Impact Weapon . | . . . . . . . Slashing Weapon . | . . . . . . . Piercing Weapon . | . . . . . . . Special Melee Weapon . | . . . . . . . Unidentified Prototypes 1 | . . . 1 . . . Parts Lost 10 | . . 1 3 2 . 4 Power . | . . . . . . . Propulsion 6 | . . . 3 2 . 1 Utility 4 | . . 1 . . . 3 Weapon . | . . . . . . . Highest Loss Streak 4 | . . 1 3 2 . 4 To Critical Strikes . | . . . . . . . Average Slot Usage (%) 21 | . . 7 8 22 29 37 Flight 8 | . . . 8 13 9 6 Hackware 6 | . . . . . 11 20 Protection 4 | . . 7 . 4 9 6 Launcher 1 | . . . . 4 . . Naked Turns 91 | . 36 13 42 . . . Heaviest Build 4 | . . 3 . 4 3 3 Greatest Support 13 | 3 3 3 13 8 4 4 Greatest Overweight (x) . | . . . . . . . Average Overweight (x) . | . . . . . . . Largest Inventory Capacity 5 | 5 5 5 5 5 5 5 Average Capacity 5 | 5 5 5 5 5 5 5 Most Carried 5 | . . 3 5 5 5 5 Average Carried 4 | . . 1 4 4 5 5 Final Capacity 5 | 5 5 5 5 5 5 5 Final Carried 5 | . . 3 5 5 5 5 Class Distribution -------------------- 70% | Mutant 29% | Hacker-Mutant Dominant Class ---------------- Mutant | -10/Materials Mutant | -10/Mines Mutant | -9/Materials Mutant | -9/Mines Hacker-Mutant | -8/Materials Hacker-Mutant | -7/Factory Resources | -11 -10 -10 -9 -9 -8 -7 ----------- Run | Jun Mat Min Mat Min Mat Fac Matter Collected 266 | 200 . . 10 56 . . Remotely . | . . . . . . . Salvage Created . | . . . . . . . Parts . | . . . . . . . Haulers Intercepted . | . . . . . . . Recyclers Shooed . | . . . . . . . Parts Field Recycled . | . . . . . . . Retrieved Matter . | . . . . . . . Parts Self-Destructed . | . . . . . . . Prevented . | . . . . . . . Kills | -11 -10 -10 -9 -9 -8 -7 ------- Run | Jun Mat Min Mat Min Mat Fac Combat Hostiles Destroyed . | . . . . . . . Classes Destroyed . | . . . . . . . Best Kill Streak . | . . . . . . . Combat Bots Only . | . . . . . . . Max Kills in Single Turn . | . . . . . . . Gunslinging . | . . . . . . . Exploded . | . . . . . . . Melee . | . . . . . . . Uniques/NPCs Destroyed . | . . . . . . . Combat | -11 -10 -10 -9 -9 -8 -7 -------- Run | Jun Mat Min Mat Min Mat Fac Damage Taken 1004 | . 36 91 422 87 78 290 Core 712 | . 36 41 316 38 46 235 Absorbed by Shields . | . . . . . . . Core Remaining (%) 67 | 100 . 69 . 11 91 . Volleys Fired . | . . . . . . . Largest . | . . . . . . . Hottest . | . . . . . . . Shots Fired . | . . . . . . . Gun . | . . . . . . . Cannon . | . . . . . . . Launcher . | . . . . . . . Special . | . . . . . . . Kinetic . | . . . . . . . Thermal . | . . . . . . . Explosive . | . . . . . . . Electromagnetic . | . . . . . . . Robot Hit Streak . | . . . . . . . Robot Miss Streak . | . . . . . . . Penetration Max . | . . . . . . . Secondary Targets . | . . . . . . . Shots Hit Robots . | . . . . . . . Core Hits 1 | . . 1 . . . . Critical Kills . | . . . . . . . Critical Parts Destroyed . | . . . . . . . Critical Strikes . | . . . . . . . Melee Attacks . | . . . . . . . Impact . | . . . . . . . Slashing . | . . . . . . . Piercing . | . . . . . . . Sneak Attacks . | . . . . . . . Combat Hostiles . | . . . . . . . Follow-up Attacks . | . . . . . . . Damage Inflicted 7 | . . 7 . . . . Guns . | . . . . . . . Cannons . | . . . . . . . Explosions . | . . . . . . . Melee . | . . . . . . . Ramming 7 | . . 7 . . . . Kinetic . | . . . . . . . Thermal . | . . . . . . . Explosive . | . . . . . . . Electromagnetic . | . . . . . . . Impact . | . . . . . . . Slashing . | . . . . . . . Piercing . | . . . . . . . Highest Corruption 2 | . . 2 . . . . Average Corruption 1 | . . 1 . . . . Corruption Purged . | . . . . . . . Corruption Blocked . | . . . . . . . Overload Shots . | . . . . . . . Overflow Damage . | . . . . . . . Projectiles . | . . . . . . . Explosions . | . . . . . . . Melee . | . . . . . . . Knockbacks . | . . . . . . . Impact . | . . . . . . . Kinetic . | . . . . . . . Secondary . | . . . . . . . Self-Inflicted Damage 3 | . . 3 . . . . Shots . | . . . . . . . Rammed 4 | . . 4 . . . . Targets Rammed 4 | . . 4 . . . . Kicked . | . . . . . . . Crushed . | . . . . . . . Highest Temperature . | . . . . . . . Average Temperature . | . . . . . . . Received Heat Transfer 321 | . 18 . 108 48 27 120 Siege Activations . | . . . . . . . Robots Corrupted . | . . . . . . . Combat Hostiles . | . . . . . . . Parts Fried . | . . . . . . . Impact Corruptions . | . . . . . . . Robots Melted . | . . . . . . . Combat Hostiles . | . . . . . . . Parts Melted . | . . . . . . . Heat Transferred . | . . . . . . . Parts Sabotaged . | . . . . . . . Parts Stolen . | . . . . . . . Parts Stripped . | . . . . . . . Power Chain Reactions . | . . . . . . . Missiles Intercepted . | . . . . . . . Alert | -11 -10 -10 -9 -9 -8 -7 ------- Run | Jun Mat Min Mat Min Mat Fac Peak Influence 266 | . 53 35 97 266 139 219 Initial 103 | . . 20 9 35 103 63 Average 95 | . 22 21 48 116 118 145 Maximum Alert Level 1 | . . . . 1 . 1 Low Security (%) 91 | 100 100 100 100 86 100 80 Level 1 8 | . . . . 13 . 20 Level 2 . | . . . . . . . Level 3 . | . . . . . . . Level 4 . | . . . . . . . Level 5 . | . . . . . . . High Security . | . . . . . . . Max Security . | . . . . . . . Squads Dispatched 6 | . 1 . 1 . . 4 Investigation 4 | . 1 . 1 . . 2 Extermination . | . . . . . . . Reinforcement 2 | . . . . . . 2 Assault . | . . . . . . . Garrison . | . . . . . . . Intercept . | . . . . . . . Searches Triggered . | . . . . . . . Construction Impeded . | . . . . . . . Haulers Reinforced . | . . . . . . . Active Scanning Responses . | . . . . . . . Cargo Convoy Interrupts . | . . . . . . . Stealth | -11 -10 -10 -9 -9 -8 -7 --------- Run | Jun Mat Min Mat Min Mat Fac Distress Signals 3 | . 1 . 1 . 1 . Communications Jammed . | . . . . . . . Distress Signals . | . . . . . . . Times Spotted 62 | . 2 7 18 13 11 11 Peak Tracking Total 14 | . 2 6 14 5 12 8 Tactical Retreats 7 | . . 1 1 4 . 1 Traps | -11 -10 -10 -9 -9 -8 -7 ------- Run | Jun Mat Min Mat Min Mat Fac Traps Triggered 2 | . . . 1 . . 1 Indirectly . | . . . . . . . Trap Hack Attempts . | . . . . . . . Triggered . | . . . . . . . Disarmed . | . . . . . . . Reprogrammed . | . . . . . . . Reused . | . . . . . . . Traps Extracted . | . . . . . . . Installed . | . . . . . . . Triggered . | . . . . . . . Most Traps Carried 3 | . . 3 3 3 3 3 Machines | -11 -10 -10 -9 -9 -8 -7 ---------- Run | Jun Mat Min Mat Min Mat Fac Machines Disabled . | . . . . . . . Max in Single Turn . | . . . . . . . Machines Repaired . | . . . . . . . Machines Sabotaged . | . . . . . . . Overloaded Fab Kills . | . . . . . . . Hacking | -11 -10 -10 -9 -9 -8 -7 --------- Run | Jun Mat Min Mat Min Mat Fac Machines Accessed 7 | . 2 . 1 . 1 3 Terminals 5 | . 1 . 1 . 1 2 Fabricators . | . . . . . . . Repair Stations . | . . . . . . . Recycling Units 2 | . 1 . . . . 1 Scanalyzers . | . . . . . . . Garrison Access . | . . . . . . . Total Hacks 13 | . 4 . 3 . 1 5 Successful 6 | . 2 . 1 . 1 2 Failed 7 | . 2 . 2 . . 3 Catastrophic 2 | . 1 . 1 . . . Database Lockouts . | . . . . . . . Manual 13 | . 4 . 3 . 1 5 Terminals 11 | . 3 . 3 . 1 4 Fabricators . | . . . . . . . Repair Stations . | . . . . . . . Recycling Units 2 | . 1 . . . . 1 Scanalyzers . | . . . . . . . Garrison Access . | . . . . . . . Terminal Hacks 4 | . 1 . 1 . 1 1 Level Access Points 1 | . . . . . 1 . Branch Access Points 3 | . 1 . 1 . . 1 Fabricator Hacks . | . . . . . . . Repair Station Hacks . | . . . . . . . Recycling Unit Hacks . | . . . . . . . Scanalyzer . | . . . . . . . Garrison Access Hacks . | . . . . . . . Unauthorized Hacks 2 | . 1 . . . . 1 Terminals . | . . . . . . . Fabricators . | . . . . . . . Repair Stations . | . . . . . . . Recycling Units 2 | . 1 . . . . 1 Tunnel 2 | . 1 . . . . 1 Scanalyzers . | . . . . . . . Garrison Access . | . . . . . . . Data Cores Recovered . | . . . . . . . Used . | . . . . . . . Hacking Detections 3 | . 1 . 1 . . 1 Full Trace Events 2 | . . . 1 . . 1 Feedback Events 2 | . . . . . . 2 Hackware Fried 2 | . . . . . . 2 Feedback Blocked . | . . . . . . . Robot Schematics Acquired . | . . . . . . . Robots Built . | . . . . . . . Authchips . | . . . . . . . Time . | . . . . . . . Total Robot Build Rating . | . . . . . . . Part Schematics Acquired . | . . . . . . . Parts Built . | . . . . . . . Authchips . | . . . . . . . Time . | . . . . . . . Total Part Build Rating . | . . . . . . . Parts Repaired . | . . . . . . . Time . | . . . . . . . Parts Recycled . | . . . . . . . Recycled Matter . | . . . . . . . Retrieved Matter . | . . . . . . . Retrieved Components . | . . . . . . . Parts Scanalyzed . | . . . . . . . Part Schematics Acquired . | . . . . . . . Parts Damaged . | . . . . . . . Bothacking | -11 -10 -10 -9 -9 -8 -7 ------------ Run | Jun Mat Min Mat Min Mat Fac Used RIF Installer . | . . . . . . . Robots Hacked . | . . . . . . . Non-combat . | . . . . . . . Combat . | . . . . . . . Robot Hacks Applied . | . . . . . . . Relay Couplers Released . | . . . . . . . Fabnet Peak Effective % . | . . . . . . . Robots Rewired . | . . . . . . . Allies Hacked . | . . . . . . . Hacks Repelled . | . . . . . . . Allies | -11 -10 -10 -9 -9 -8 -7 -------- Run | Jun Mat Min Mat Min Mat Fac Total Allies 2 | . . . . 2 . . Largest Group 2 | . . . . 2 . . Highest-Rated Group 45 | . . . . 45 . . Highest-Rated Ally 31 | . . . . 31 . . Total Orders . | . . . . . . . Ally Attacks 6 | . . . . 6 . . Total Damage 105 | . . . . 105 . . Kills 2 | . . . . 2 . . Allies Corrupted . | . . . . . . . Allies Melted . | . . . . . . . Intel | -11 -10 -10 -9 -9 -8 -7 ------- Run | Jun Mat Min Mat Min Mat Fac Robot Analysis Total . | . . . . . . . Derelict Logs Recovered 2 | . . . . 2 . . Drone Launches . | . . . . . . . Drone Recoveries . | . . . . . . . Exploration | -11 -10 -10 -9 -9 -8 -7 ------------- Run | Jun Mat Min Mat Min Mat Fac Turns Passed 506 | 12 36 40 82 153 73 110 Spaces Moved 1097 | 25 72 62 166 343 171 258 Core 258 | 25 72 62 81 . . 18 Treads . | . . . . . . . Legs . | . . . . . . . Wheels . | . . . . . . . Hover . | . . . . . . . Flight 839 | . . . 85 343 171 240 Fastest Speed 34 | 50 50 50 34 37 40 40 Average Speed 41 | 50 50 50 43 39 40 40 Slowest Speed 50 | 50 50 50 50 40 40 50 Overloaded Moves . | . . . . . . . Propulsion Burnouts . | . . . . . . . Robots Hopped 23 | . . . 6 7 5 5 Cave-ins Triggered . | . . . . . . . Exploration Rate (%) 21 | 3 23 17 24 51 23 11 Regions Visited 6 Branch Regions 2 Pre-discovered Areas 3 | . 1 . . 1 . 1 Known Exits Taken 3 | . 1 . 1 . 1 . Unknown Exits Taken 3 | 1 . 1 . 1 . . Scrap Searched 2 | . . 1 . 1 . . Spaces Dug . | . . . . . . . Terrain Destroyed . | . . . . . . . Melee . | . . . . . . . Projectile . | . . . . . . . AOE . | . . . . . . . Terrain Rammed . | . . . . . . . Walls Destroyed . | . . . . . . . Machines Disabled . | . . . . . . . Actions | -11 -10 -10 -9 -9 -8 -7 --------- Run | Jun Mat Min Mat Min Mat Fac Total 1107 | 24 71 69 166 353 168 256 Wait 10 | . . . . 10 . . Move 1049 | 24 71 61 154 329 161 249 Hop 19 | . . . 5 6 4 4 Pick Up 5 | . . 3 2 . . . Fast Attach 15 | . . 1 5 3 3 3 Attach 2 | . . . . 2 . . Detach 2 | . . . . 2 . . Swap . | . . . . . . . Drop 1 | . . . . 1 . . Fire . | . . . . . . . Melee . | . . . . . . . Ram 4 | . . 4 . . . . Kick . | . . . . . . . Crush . | . . . . . . . Escape Stasis . | . . . . . . . Rewire . | . . . . . . . Trap . | . . . . . . . Miscellaneous . | . . . . . . . Route ------- -11/Junkyard -10/Materials -10/Mines -9/Materials (discovered 2 exits: *Min x2) -9/Mines -8/Materials (discovered 3 exits: *Fac x3) -7/Factory (discovered 2 exits: Low x2) History --------- Turn | Location | Event 5 | -11/Junkyard | Discovered new exit (range 14) 13 | -11/Junkyard | Entered Materials 21 | -10/Materials | Identified exit to Mines 49 | -10/Materials | Entered Mines 66 | -10/Mines | Found a hidden stash of uninstalled traps 82 | -10/Mines | Discovered new exit (range 9) 87 | -10/Mines | Met a Derelict bent on vengeance 89 | -10/Mines | Entered Materials 89 | -9/Materials | Evolved 2 slots: Propulsion x1, Utility x1 137 | -9/Materials | Identified exit to Mines 146 | -9/Materials | Core integrity fell below 50% 171 | -9/Materials | Entered Mines 188 | -9/Mines | Lost 3 parts (3n) 190 | -9/Mines | Discovered new exit (range 10) 202 | -9/Mines | Received a Rocket Launcher from a helpful Derelict 220 | -9/Mines | Core integrity fell below 20% 226 | -9/Mines | Learned Materials emergency access door positions 242 | -9/Mines | Learned location of Zion (-6) 257 | -9/Mines | Joined a pair of Derelicts in attacking an 0b10 outpost 306 | -9/Mines | Build established: Mutant 324 | -9/Mines | Entered Materials 324 | -8/Materials | Evolved 2 slots: Propulsion x1, Utility x1 376 | -8/Materials | Identified exit to Factory 397 | -8/Materials | Entered Factory 397 | -7/Factory | Evolved 2 slots: Utility x2 439 | -7/Factory | Identified exit to Lower Caves 507 | -7/Factory | Hacking Suite fried by hacking feedback 507 | -7/Factory | Hacking Suite fried by hacking feedback 507 | -7/Factory | Self-destructed Last Messages --------------- 00466_ Triggered Blade Trap. 00466_ Massive razor-sharp blades shoot up from within the floor. 00466_ Flight Unit severed. 00466_ Lgt. Armor Plating severed. 00466_ Hacking Suite severed. 00466_ Acquired Flight Unit. 00467_ ALERT: Hostiles spotted, dispatching reinforcements to Terminal F016. 00468_ Acquired Lgt. Armor Plating. 00471_ K-01 Serf cleans the Assembly Bed. 00474_ U-05 Engineer lays Concrete. 00491_ Lgt. Armor Plating destroyed. 00498_ Flight Unit destroyed. 00502_ K-01 Serf destroyed. 00503_ K-01 Serf collects debris. 00504_ K-01 Serf cleans the Manufacturing Mainframe. 00507_ Connecting with Terminal... Feedback: Hacking Suite fried. 00507_ ALERT: Suspicious activity at Terminal F008. Dispatching Investigation squad. Map ----- +----------------------------------------------------+ | ?????????????????????????????????????????????????? | | ?????????????????????????????????????????????????? | | ?????????????????????????????????????????????????? | | ?????????????????????????????????????????????????? | | ?????????????????????????????????????????????????? | | ?????????????????????????????????????????????????" | | ????????????????????????????????????????????????"" | | ???????????????????????????????????????????????? | | ????????????????????????????????????????????????"" | | ????????????????????????????????????????????????"" | | ???????????????? ?????????????????????????????"" | | ???????????????? ?????????????????????????????? | | ??????????????? ????????????????????????????? | | ??????????????? ############################# | | ?????????????? | | ??????????????? | | ?????????????? * | | ?????????????? % | | ????????????? | | ????????????? | | ????????????? | | ??????????????????#########+################+##### | | ?????????????????????# =#??????????????? | | ?????????????????????# "" k #??????????????? | | ?????????????????????# """ """" #??????????????? | | ?????????????????????# "T@ """" #??????????????? | | ?????????????????????# """ """" #??????????????? | | ?????????????????????# "" """" #??????????????? | | ?????????????????????# #??????????????? | | ?????????????????????# """" """" ???????????????? | | ?????????????????????# """" """" #??????????????? | | ?????????????????????# """" """" #??????????????? | | ?????????????????????#?"""" """"?????????????????? | | ????????????????????????? ???????????????????? | | ??????????????????????????####???????????????????? | | ?????????????????????????????????????????????????? | | ?????????????????????????????????????????????????? | | ?????????????????????????????????????????????????? | | ?????????????????????????????????????????????????? | | ?????????????????????????????????????????????????? | | ?????????????????????????????????????????????????? | | ?????????????????????????????????????????????????? | | ?????????????????????????????????????????????????? | | ?????????????????????????????????????????????????? | | ?????????????????????????????????????????????????? | | ?????????????????????????????????????????????????? | | ?????????????????????????????????????????????????? | | ?????????????????????????????????????????????????? | | ?????????????????????????????????????????????????? | | ?????????????????????????????????????????????????? | +----------------------------------------------------+ Best States ------------- Heat Dissipation 34 Energy Generation 5 Energy Capacity 100 Matter Stores 300 Matter Capacity 300 Sight Range 16 Terrain Scan Density 10 Armor Coverage 150 Evasion (%) 62 Offensive Hacking 30 Item Schematics ----------------- None Robot Schematics ------------------ None Fabricated ------------ Nothing Alien Tech Used ----------------- None Achievements -------------- None Challenges ------------ None Game ------ Seed PlasmaAntigravDriver Manual? 0 Play Time 00:07:27 Cumulative 271.9 hours Start 2023.06.04 @ 14:53:42 End 2023.06.04 @ 15:01:10 Sessions 1 Manual Loads 0 Difficulty Rogue Special Mode None Game No. 803 Rogue 803 Adventurer 0 Explorer 0 Win Type - Total 15 Types 8/0/5/2/0/0/0/0/0 Lore% 89 Gallery% 86 Achievement% 77 Wizard Run 0 Options --------- ASCII 0 Keyboard 0 Movement Numpad Keybinds 0 Fullscreen 1 Font 16/SmallcapsGlow Map View 75x55 Tactical HUD 1 Map Filters NONE Filters NONE Steam 1 RUN: 9740c82c-9811-4ba5-bd02-497034251065